bitfinex/quotes_SOLUSD_20230701
["timestamp","ask_amount","ask_price","bid_price","bid_amount"]
[1688233001196,22.992,18.398,18.383,23.009]
[1688233002603,55.0,18.397,18.383,23.009]
[1688233002903,77.994,18.397,18.383,23.009]
[1688233004313,77.994,18.397,18.38,24.77]
[1688233004518,77.994,18.397,18.378,59.255]
[1688233004519,20.0,18.396,18.378,90.8128]
[1688233004706,20.0,18.396,18.38,23.013]
[1688233004707,24.78,18.39,18.38,23.013]
[1688233004906,23.003,18.389,18.38,23.013]
[1688233005104,55.0,18.388,18.38,23.013]
[1688233008313,23.007,18.386,18.377,23.017]
[1688233008518,55.0,18.385,18.377,23.017]
[1688233008814,78.008,18.385,18.377,23.017]
[1688233009205,23.008,18.385,18.377,23.017]
[1688233009408,51.40569794,18.4,18.38,24.78]
[1688233009700,22.993,18.397,18.386,23.006]
[1688233010219,22.991,18.399,18.386,23.006]
[1688233012107,55.0,18.398,18.386,23.006]
[1688233012718,55.0,18.399,18.386,23.006]
[1688233013108,77.99,18.399,18.386,23.006]
[1688233015807,55.0,18.399,18.386,23.006]
[1688233017026,55.0,18.399,18.386,33.84319922]
[1688233026627,55.0,18.399,18.387,10.83719922]
[1688233026808,55.0,18.399,18.39,23.0]
[1688233027012,55.0,18.398,18.39,23.0]
[1688233027222,55.0,18.4,18.39,23.0]
[1688233029911,43.3219,18.412,18.391,20.0]
[1688233030117,22.979,18.408,18.397,22.992]
[1688233030314,55.0,18.407,18.397,22.992]
[1688233032035,22.979,18.408,18.397,22.992]
[1688233033427,55.0,18.407,18.397,22.992]
[1688233036429,22.978,18.409,18.397,22.992]
[1688233036430,55.0,18.408,18.397,22.992]
[1688233037227,77.979,18.408,18.397,22.992]
[1688233038834,55.0,18.408,18.397,22.992]
[1688233039329,55.0,18.409,18.397,22.992]
[1688233039538,77.978,18.409,18.397,22.992]
[1688233041138,104.94240165,18.409,18.397,22.992]
[1688233042931,81.96440165,18.409,18.397,22.992]
[1688233046042,113.37019987,18.409,18.397,22.992]
[1688233048438,104.94240165,18.409,18.397,22.992]
[1688233048649,81.96440165,18.409,18.397,22.992]
[1688233050352,104.94240165,18.409,18.397,22.992]
[1688233051227,26.96440165,18.409,18.397,22.992]
[1688233051427,8.42779822,18.412,18.397,22.992]
[1688233051428,31.40179822,18.412,18.397,22.992]
[1688233051937,42.976,18.411,18.397,22.992]
[1688233052643,55.0,18.41,18.397,22.992]
[1688233053039,42.976,18.411,18.397,22.992]
[1688233054632,55.0,18.41,18.397,22.992]
[1688233055434,77.977,18.41,18.397,22.992]
[1688233056358,55.0,18.41,18.397,22.992]
[1688233057859,77.977,18.41,18.397,22.992]
[1688233058040,55.0,18.41,18.397,22.992]
[1688233059538,77.977,18.41,18.397,22.992]
[1688233060358,55.0,18.41,18.397,22.992]
[1688233062766,77.977,18.41,18.397,22.992]
[1688233063765,55.0,18.41,18.397,22.992]
[1688233067453,77.977,18.41,18.397,22.992]
[1688233067654,55.0,18.41,18.397,33.82919922]
[1688233067851,22.971,18.415,18.397,33.82919922]
[1688233068048,4.22179697,18.414,18.398,10.83719922]
[1688233068249,428.08993256,18.416,18.402,82.161]
[1688233068250,5.02808786,18.415,18.402,82.161]
[1688233068544,22.97,18.416,18.402,82.161]
[1688233068753,22.97,18.416,18.402,92.99819922]
[1688233068954,22.97,18.416,18.406,22.98]
[1688233069157,55.46290196,18.418,18.406,22.98]
[1688233069359,78.42990196,18.418,18.406,22.98]
[1688233069546,77.968,18.417,18.406,22.98]
[1688233070863,55.0,18.417,18.406,22.98]
[1688233071067,22.969,18.416,18.406,22.98]
[1688233071267,55.0,18.415,18.406,22.98]
[1688233071460,59.111,18.423,18.406,22.98]
[1688233071654,21.85738302,18.422,18.406,22.98]
[1688233071862,22.964,18.42,18.406,22.98]
[1688233072757,77.966,18.419,18.406,22.98]
[1688233074267,55.0,18.419,18.406,22.98]
[1688233074963,87.48493256,18.422,18.406,22.98]
[1688233075766,22.965,18.419,18.406,22.98]
[1688233076860,55.0,18.418,18.406,22.98]
[1688233077167,22.971,18.415,18.406,22.98]
[1688233077464,55.0,18.414,18.406,22.98]
[1688233080257,55.0,18.414,18.401,59.18]
[1688233080258,22.972,18.414,18.397,59.191]
[1688233080568,24.46,18.41,18.397,82.183]
[1688233081051,55.0,18.409,18.396,22.993]
[1688233081452,22.98,18.408,18.396,22.993]
[1688233081659,55.0,18.407,18.396,22.993]
[1688233083364,22.98,18.408,18.396,22.993]
[1688233083652,55.0,18.407,18.396,22.993]
[1688233084068,55.0,18.408,18.396,22.993]
[1688233084375,55.0,18.409,18.396,33.83019922]
[1688233085171,77.978,18.409,18.396,33.83019922]
[1688233085757,55.0,18.409,18.4,24.61]
[1688233085957,22.975,18.412,18.402,22.985]
[1688233086256,42.975,18.411,18.402,22.985]
[1688233087470,77.977,18.41,18.4,24.61]
[1688233087671,102.427,18.41,18.393,151.7937]
[1688233088760,102.427,18.41,18.4,22.988]
[1688233089060,102.427,18.41,18.399,22.989]
[1688233089264,77.977,18.41,18.399,22.989]
[1688233089468,55.0,18.41,18.399,22.989]
[1688233090267,77.976,18.41,18.399,22.989]
[1688233090458,102.436,18.41,18.399,22.989]
[1688233092463,79.46,18.41,18.399,82.176]
[1688233092659,55.0,18.41,18.4,24.61]
[1688233092866,20.0,18.411,18.403,22.985]
[1688233093059,20.0,18.412,18.403,22.985]
[1688233093465,20.0,18.413,18.403,22.985]
[1688233093955,20.0,18.417,18.403,22.985]
[1688233094775,22.972,18.414,18.403,22.985]
[1688233095071,20.0,18.413,18.403,22.985]
[1688233095473,55.0,18.412,18.403,22.985]
[1688233095669,108.769357,18.418,18.403,22.985]
[1688233095854,24.45,18.42,18.403,22.985]
[1688233095855,22.965,18.419,18.403,33.82219922]
[1688233096274,22.965,18.419,18.404,10.83719922]
[1688233096473,47.415,18.419,18.408,22.978]
[1688233097171,22.965,18.419,18.408,22.978]
[1688233097960,55.0,18.418,18.408,22.978]
[1688233098160,22.969,18.416,18.408,22.978]
[1688233098367,55.0,18.415,18.408,22.978]
[1688233099771,24.45,18.42,18.408,130.92]
[1688233099972,396.8,18.424,18.41,24.61]
[1688233100163,22.963,18.421,18.413,22.972]
[1688233100363,22.962,18.422,18.413,22.972]
[1688233100571,20.0,18.421,18.413,22.972]
[1688233102477,55.0,18.42,18.413,22.972]
[1688233103479,20.0,18.421,18.413,22.972]
[1688233104067,22.962,18.422,18.413,22.972]
[1688233104475,20.0,18.421,18.413,22.972]
[1688233106476,22.959,18.424,18.413,33.80919922]
[1688233106676,22.956,18.427,18.413,33.80919922]
[1688233106881,22.956,18.427,18.417,22.966]
[1688233107089,59.078,18.434,18.417,22.966]
[1688233107090,86.144857,18.434,18.417,22.966]
[1688233107273,22.953,18.429,18.417,22.966]
[1688233107678,22.949,18.432,18.417,22.966]
[1688233107883,20.0,18.431,18.417,22.966]
[1688233108080,22.952,18.43,18.417,22.966]
[1688233108484,55.0,18.429,18.417,22.966]
[1688233108790,77.953,18.429,18.417,22.966]
[1688233108991,27.066857,18.433,18.417,22.966]
[1688233109675,20.0,18.432,18.417,22.966]
[1688233109876,22.952,18.43,18.417,22.966]
[1688233110293,55.0,18.429,18.417,22.966]
[1688233114186,77.953,18.429,18.417,22.966]
[1688233114372,59.072,18.436,18.417,22.966]
[1688233114571,56.75180128,18.435,18.417,22.966]
[1688233114777,20.0,18.434,18.417,22.966]
[1688233114980,20.0,18.434,18.417,33.80319922]
[1688233114981,55.0,18.433,18.417,33.80319922]
[1688233115990,22.951,18.431,18.417,33.80319922]
[1688233116186,77.951,18.43,18.417,33.80319922]
[1688233116491,55.0,18.429,18.417,22.966]
[1688233116785,22.955,18.427,18.417,22.966]
[1688233117388,55.0,18.429,18.417,22.966]
[1688233117389,77.954,18.429,18.417,22.966]
[1688233118996,22.948,18.433,18.417,33.80319922]
[1688233119191,22.948,18.433,18.418,10.83719922]
[1688233119381,22.948,18.433,18.422,22.961]
[1688233119890,22.945,18.435,18.422,22.961]
[1688233120095,22.945,18.435,18.422,33.79819922]
[1688233120299,22.945,18.435,18.422,22.961]
[1688233121597,55.0,18.434,18.422,33.79819922]
[1688233121784,55.0,18.434,18.422,141.65819922]
[1688233121984,55.0,18.434,18.423,10.83719922]
[1688233122184,55.0,18.434,18.426,22.956]
[1688233122888,138.649,18.44,18.426,22.956]
[1688233123689,22.942,18.438,18.426,22.956]
[1688233124487,55.0,18.437,18.426,22.956]
[1688233124687,55.0,18.44,18.426,130.792]
[1688233124880,49.66738438,18.441,18.426,130.792]
[1688233126199,55.0,18.44,18.426,130.792]
[1688233127793,26.72938438,18.441,18.426,130.792]
[1688233128098,22.936,18.443,18.426,130.792]
[1688233129408,49.42172668,18.443,18.426,130.792]
[1688233129609,22.936,18.443,18.426,130.792]
[1688233129801,22.936,18.443,18.427,10.83719922]
[1688233129994,55.0,18.442,18.429,22.951]
[1688233130206,22.939,18.44,18.428,84.5919]
[1688233130507,22.945,18.436,18.426,22.956]
[1688233131403,22.947,18.434,18.423,22.959]
[1688233131613,22.95,18.431,18.423,22.959]
[1688233134011,22.949,18.432,18.423,22.959]
[1688233134506,22.949,18.432,18.414,59.067]
[1688233134507,55.0,18.431,18.414,59.138]
[1688233134687,22.956,18.426,18.417,22.966]
[1688233135210,22.962,18.422,18.411,22.975]
[1688233135591,22.969,18.416,18.407,22.98]
[1688233135815,114.117,18.421,18.409,22.977]
[1688233135816,24.59,18.42,18.409,22.977]
[1688233135993,55.0,18.419,18.409,22.977]
[1688233136185,77.966,18.419,18.409,22.977]
[1688233137806,77.966,18.419,18.407,22.979]
[1688233140207,77.966,18.419,18.405,22.981]
[1688233140411,77.966,18.419,18.406,22.98]
[1688233147716,22.966,18.419,18.406,22.98]
[1688233148723,22.963,18.421,18.406,22.98]
[1688233149014,59.111,18.425,18.41,24.59]
[1688233149015,22.96,18.423,18.41,24.59]
[1688233149224,2.90793666,18.429,18.418,22.966]
[1688233149608,22.953,18.429,18.418,22.966]
[1688233150405,22.951,18.431,18.418,22.966]
[1688233150710,20.0,18.433,18.418,22.966]
[1688233150906,22.948,18.433,18.418,22.966]
[1688233151819,45.896,18.433,18.418,22.966]
[1688233152132,22.951,18.431,18.418,22.966]
[1688233154114,55.0,18.43,18.418,22.966]
[1688233154306,22.956,18.427,18.416,98.871]
[1688233155111,63.31869604,18.426,18.412,22.973]
[1688233155316,22.961,18.422,18.407,149.972]
[1688233155615,22.967,18.418,18.41,22.975]
[1688233155808,22.967,18.418,18.408,22.977]
[1688233156011,55.0,18.417,18.408,22.977]
[1688233156215,22.97,18.416,18.408,22.977]
[1688233156720,22.967,18.418,18.408,22.977]
[1688233156917,22.968,18.417,18.408,22.977]
[1688233163726,59.114,18.422,18.408,22.977]
[1688233163912,22.966,18.419,18.408,22.977]
[1688233164112,55.0,18.418,18.408,22.977]
[1688233164418,77.967,18.418,18.408,22.977]
[1688233165917,55.0,18.418,18.408,22.977]
[1688233166111,22.965,18.42,18.408,22.977]
[1688233166420,22.962,18.422,18.408,22.977]
[1688233167927,22.962,18.422,18.409,55.0]
[1688233168123,22.962,18.422,18.412,22.973]
[1688233172631,22.961,18.423,18.412,22.973]
[1688233172842,59.091,18.429,18.413,55.0]
[1688233173024,59.091,18.429,18.414,22.97]
[1688233173927,22.959,18.424,18.414,22.97]
[1688233174734,22.957,18.426,18.414,22.97]
[1688233180028,77.955,18.428,18.414,22.97]
[1688233186444,77.955,18.428,18.414,20.47]
[1688233186945,22.955,18.428,18.414,20.47]
[1688233187843,22.953,18.429,18.414,128.377]
[1688233188045,22.952,18.43,18.414,128.377]
[1688233188230,77.953,18.429,18.414,128.377]
[1688233189845,22.953,18.429,18.414,128.377]
[1688233196454,22.953,18.429,18.414,20.47]
[1688233196656,55.0,18.428,18.414,20.47]
[1688233196857,22.957,18.426,18.414,20.47]
[1688233198754,77.954,18.428,18.414,20.47]
[1688233198959,55.0,18.428,18.414,20.47]
[1688233199846,22.956,18.427,18.414,20.47]
[1688233200045,55.0,18.426,18.414,20.47]
[1688233200247,77.957,18.426,18.414,20.47]
[1688233207174,137.058,18.426,18.414,20.47]
[1688233207765,77.957,18.426,18.414,20.47]
[1688233211359,22.957,18.426,18.414,20.47]
[1688233212677,77.958,18.425,18.414,20.47]
[1688233212969,55.0,18.425,18.414,20.47]
[1688233213270,55.0,18.426,18.414,20.47]
[1688233214881,22.955,18.427,18.414,20.47]
[1688233215972,22.954,18.429,18.415,55.0]
[1688233216159,22.954,18.429,18.419,22.965]
[1688233217361,55.0,18.428,18.419,22.965]
[1688233219168,77.954,18.428,18.419,22.965]
[1688233222275,77.954,18.428,18.417,22.966]
[1688233224971,22.954,18.428,18.417,22.966]
[1688233230188,135.40892184,18.435,18.417,22.966]
[1688233230377,80.68082359,18.434,18.417,22.966]
[1688233230573,88.99951963,18.434,18.417,22.966]
[1688233230775,22.952,18.43,18.417,22.966]
[1688233231487,55.0,18.429,18.417,22.966]
[1688233231687,22.957,18.426,18.417,22.966]
[1688233234775,22.955,18.428,18.417,22.966]
[1688233246791,28.31869604,18.434,18.417,22.966]
[1688233246990,58.3922862,18.433,18.417,22.966]
[1688233247305,22.951,18.431,18.417,22.966]
[1688233247605,55.0,18.43,18.417,22.966]
[1688233247804,22.956,18.427,18.417,22.966]
[1688233248100,22.953,18.429,18.417,22.966]
[1688233249491,55.0,18.43,18.417,22.966]
[1688233249795,55.0,18.431,18.417,22.966]
[1688233250806,77.95,18.431,18.417,22.966]
[1688233252204,24.55,18.43,18.417,22.966]
[1688233252386,77.953,18.429,18.417,22.966]
[1688233259894,22.951,18.431,18.417,22.966]
[1688233261107,55.0,18.43,18.417,22.966]
[1688233261311,77.951,18.43,18.417,22.966]
[1688233262903,102.501,18.43,18.417,22.966]
[1688233268007,79.55,18.43,18.417,22.966]
[1688233270012,102.501,18.43,18.417,22.966]
[1688233273421,79.55,18.43,18.417,22.966]
[1688233273719,102.502,18.43,18.417,22.966]
[1688233274298,2.25282916,18.429,18.417,22.966]
[1688233274507,22.957,18.426,18.417,22.966]
[1688233274728,55.0,18.425,18.417,22.966]
[1688233274898,22.959,18.424,18.417,22.966]
[1688233275102,55.0,18.423,18.417,22.966]
[1688233280714,55.0,18.423,18.415,22.969]
[1688233289916,22.957,18.426,18.415,22.969]
[1688233290222,106.88828763,18.43,18.415,22.969]
[1688233290421,5.81758489,18.429,18.415,22.969]
[1688233290619,14.13628093,18.429,18.415,22.969]
[1688233291009,22.954,18.428,18.415,22.969]
[1688233291217,5.81758489,18.427,18.415,22.969]
[1688233291521,77.957,18.426,18.415,22.969]
[1688233293122,55.0,18.426,18.415,190.006]
[1688233294104,55.0,18.426,18.415,82.105]
[1688233294528,77.957,18.426,18.415,22.969]
[1688233294823,86.27569604,18.426,18.415,22.969]
[1688233297621,2.17413361,18.425,18.415,82.105]
[1688233297826,86.27569604,18.426,18.415,22.969]
[1688233302117,55.0,18.426,18.415,22.969]
[1688233307634,77.956,18.426,18.415,22.969]
[1688233309630,1.72951904,18.425,18.415,22.969]
[1688233310926,24.68851904,18.425,18.415,22.969]
[1688233311127,55.0,18.424,18.415,22.969]
[1688233311338,22.961,18.423,18.415,22.969]
[1688233311539,55.0,18.422,18.415,22.969]
[1688233311740,77.961,18.422,18.415,22.969]
[1688233312265,55.0,18.422,18.415,22.969]
[1688233312545,55.0,18.423,18.415,22.969]
[1688233312939,77.96,18.423,18.415,22.969]
[1688233319546,47.514,18.42,18.413,22.972]
[1688233319725,55.0,18.419,18.413,22.972]
[1688233319924,27.83318838,18.427,18.413,22.972]
[1688233320138,22.959,18.424,18.413,22.972]
[1688233320340,27.83318838,18.427,18.413,22.972]
[1688233320341,22.961,18.422,18.413,22.972]
[1688233320544,20.0,18.421,18.413,22.972]
[1688233321125,42.963,18.421,18.413,22.972]
[1688233321331,55.0,18.42,18.413,22.972]
[1688233323034,77.964,18.42,18.413,22.972]
[1688233326728,77.964,18.42,18.41,24.59]
[1688233327044,22.965,18.419,18.411,22.974]
[1688233328138,22.964,18.42,18.411,22.974]
[1688233330044,55.0,18.419,18.41,24.59]
[1688233330245,26.41681736,18.418,18.41,24.59]
[1688233330445,22.967,18.418,18.41,24.59]
[1688233331131,22.969,18.416,18.41,24.59]
[1688233336741,22.967,18.418,18.41,47.566]
[1688233337045,55.0,18.417,18.41,47.566]
[1688233337431,82.76911602,18.425,18.41,47.566]
[1688233337643,27.33828763,18.43,18.411,112.19545229]
[1688233337945,22.954,18.428,18.416,22.968]
[1688233338735,19.46689918,18.427,18.416,22.968]
[1688233338939,55.0,18.426,18.416,22.968]
[1688233339353,19.46689918,18.425,18.416,22.968]
[1688233341859,19.46689918,18.425,18.42,24.59]
[1688233342161,55.0,18.426,18.42,47.552]
[1688233342458,55.0,18.427,18.42,22.962]
[1688233356059,27.68346565,18.428,18.42,106.672]
[1688233356369,22.949,18.432,18.42,106.672]
[1688233356569,75.0,18.431,18.42,106.672]
[1688233356781,5.70815212,18.43,18.42,106.672]
[1688233357075,5.70815212,18.428,18.42,22.962]
[1688233357280,55.0,18.427,18.42,22.962]
[1688233361074,55.0,18.428,18.42,22.962]
[1688233361377,1.75674801,18.427,18.42,22.962]
[1688233362477,55.0,18.428,18.42,22.962]
[1688233367677,24.89887575,18.427,18.42,22.962]
[1688233367886,55.0,18.426,18.42,22.962]
[1688233368060,6.07969422,18.425,18.416,22.968]
[1688233368261,22.962,18.422,18.414,22.97]
[1688233368461,55.0,18.421,18.414,22.97]
[1688233374464,24.55,18.42,18.414,22.97]
[1688233374668,55.0,18.419,18.414,22.97]
[1688233377293,55.0,18.419,18.405,99.8625]
[1688233377479,11.79219422,18.418,18.407,59.159]
[1688233377673,55.0,18.417,18.407,59.159]
[1688233378383,11.79219422,18.416,18.407,59.159]
[1688233378591,55.0,18.415,18.407,59.159]
[1688233378764,55.0,18.415,18.409,22.977]
[1688233379489,55.0,18.416,18.409,22.977]
[1688233379976,77.969,18.416,18.4,35.42719922]
[1688233380284,38.20245795,18.415,18.4,22.988]
[1688233380487,22.976,18.411,18.4,22.988]
[1688233380784,22.978,18.409,18.4,22.988]
[1688233380989,55.0,18.408,18.4,22.988]
[1688233382476,1.60203243,18.407,18.4,22.988]
[1688233382681,55.0,18.408,18.4,22.988]
[1688233382985,2.52469177,18.407,18.4,22.988]
[1688233384679,55.0,18.408,18.4,22.988]
[1688233384878,5.10581007,18.408,18.4,22.988]
[1688233385085,55.0,18.407,18.4,22.988]
[1688233385478,77.979,18.408,18.4,22.988]
[1688233385670,55.0,18.408,18.4,22.988]
[1688233387582,59.141,18.414,18.4,22.988]
[1688233387790,7.77130107,18.412,18.4,47.578]
[1688233388090,75.0,18.411,18.4,47.578]
[1688233388277,7.77130107,18.41,18.4,47.578]
[1688233388476,55.0,18.409,18.4,47.578]
[1688233388979,3.51849118,18.409,18.4,47.578]
[1688233389481,3.51849118,18.409,18.401,75.0]
[1688233389787,34.63373869,18.418,18.403,190.126]
[1688233390179,34.63373869,18.418,18.403,200.96319922]
[1688233390605,11.66773869,18.418,18.41,24.59]
[1688233390891,14.71693846,18.423,18.412,22.973]
[1688233391094,20.0,18.422,18.412,22.973]
[1688233391392,22.965,18.42,18.412,22.973]
[1688233391592,22.965,18.42,18.41,22.976]
[1688233391789,15.52109225,18.419,18.411,22.974]
[1688233391991,55.0,18.418,18.411,22.974]
[1688233392311,55.0,18.418,18.409,22.977]
[1688233392477,29.56141986,18.418,18.404,10.83719922]
[1688233392677,55.0,18.417,18.409,22.977]
[1688233392881,6.59441986,18.416,18.409,22.977]
[1688233393394,22.969,18.417,18.409,22.977]
[1688233393591,20.0,18.422,18.409,22.977]
[1688233393892,66.50144617,18.421,18.409,22.977]
[1688233394779,22.964,18.42,18.409,22.977]
[1688233394984,66.50144617,18.419,18.409,22.977]
[1688233395290,22.967,18.418,18.409,22.977]
[1688233395484,66.50144617,18.417,18.409,22.977]
[1688233395889,55.0,18.417,18.409,22.977]
[1688233397683,77.968,18.417,18.409,22.977]
[1688233397888,2.62938367,18.416,18.409,22.977]
[1688233398096,25.59838367,18.416,18.409,22.977]
[1688233398299,55.0,18.415,18.409,22.977]
[1688233401896,55.0,18.416,18.409,22.977]
[1688233403094,2.54365204,18.416,18.409,22.977]
[1688233403696,22.97,18.415,18.405,22.981]
[1688233403897,60.3436586,18.414,18.405,22.981]
[1688233404199,22.973,18.413,18.405,22.981]
[1688233404399,55.0,18.412,18.405,22.981]
[1688233405799,55.0,18.413,18.405,22.981]
[1688233405997,22.974,18.412,18.405,22.981]
[1688233406195,55.0,18.411,18.405,22.981]
[1688233406402,22.974,18.412,18.405,22.981]
[1688233406593,55.0,18.411,18.405,22.981]
[1688233407598,3.67885784,18.419,18.405,22.981]
[1688233407793,58.67885784,18.419,18.405,22.981]
[1688233408807,22.969,18.416,18.405,22.981]
[1688233408991,59.60238561,18.415,18.405,22.981]
[1688233412210,55.0,18.415,18.405,22.981]
[1688233412412,6.79158104,18.414,18.405,22.981]
[1688233412604,55.0,18.413,18.405,22.981]
[1688233413005,55.0,18.414,18.405,22.981]
[1688233413597,55.0,18.415,18.405,22.981]
[1688233413798,4.00515924,18.414,18.405,22.981]
[1688233417805,55.0,18.415,18.405,22.981]
[1688233420901,1.64191551,18.414,18.405,22.981]
[1688233421210,4.76218022,18.415,18.405,22.981]
[1688233421404,55.0,18.414,18.405,22.981]
[1688233424832,55.0,18.414,18.401,90.5532]
[1688233424833,77.972,18.414,18.401,90.5532]
[1688233425008,28.68708577,18.413,18.401,90.5532]
[1688233425324,22.977,18.41,18.401,113.5392]
[1688233425520,55.0,18.409,18.401,113.5392]
[1688233425717,22.979,18.408,18.401,113.5392]
[1688233425916,55.0,18.407,18.401,113.5392]
[1688233426420,55.0,18.407,18.401,22.986]
[1688233427521,55.0,18.407,18.4,22.988]
[1688233430610,7.5723309,18.406,18.395,59.198]
[1688233431530,55.0,18.405,18.395,59.198]
[1688233431714,7.5723309,18.404,18.395,59.198]
[1688233431915,7.5723309,18.404,18.399,22.99]
[1688233432115,55.0,18.405,18.399,22.99]
[1688233432316,55.0,18.406,18.399,22.99]
[1688233432519,1.75071921,18.405,18.399,22.99]
[1688233433234,22.984,18.405,18.383,108.083]
[1688233433441,22.984,18.405,18.386,94.2169]
[1688233433442,19.46689918,18.404,18.386,94.2169]
[1688233433727,22.99,18.399,18.391,23.0]
[1688233433906,77.992,18.398,18.391,23.0]
[1688233434111,55.0,18.397,18.391,23.0]
[1688233434311,55.0,18.397,18.389,23.001]
[1688233435215,55.0,18.397,18.384,153.797]
[1688233435216,77.993,18.397,18.384,94.563]
[1688233435427,5.82151978,18.396,18.381,41.93179083]
[1688233435634,22.998,18.393,18.384,23.008]
[1688233436230,77.999,18.392,18.385,23.5944848]
[1688233436431,22.999,18.392,18.385,23.5944848]
[1688233436619,55.0,18.391,18.385,23.5944848]
[1688233438327,55.0,18.391,18.385,0.5874848]
[1688233438328,78.0,18.391,18.385,0.5874848]
[1688233439327,55.0,18.391,18.385,0.5874848]
[1688233439732,55.0,18.392,18.385,0.5874848]
[1688233440435,77.999,18.392,18.385,0.5874848]
[1688233440818,55.0,18.392,18.385,23.5944848]
[1688233441826,78.0,18.392,18.385,0.5874848]
[1688233442536,78.0,18.392,18.38,15.5874848]
[1688233443034,78.0,18.392,18.384,23.008]
[1688233447367,55.0,18.392,18.384,23.008]
[1688233448429,55.0,18.393,18.384,23.008]
[1688233450845,77.998,18.393,18.384,23.008]
[1688233451145,77.998,18.393,18.382,23.01]
[1688233451549,1.70612962,18.392,18.382,23.01]
[1688233451842,23.001,18.391,18.382,23.01]
[1688233452025,55.0,18.39,18.382,23.01]
[1688233455448,55.0,18.391,18.382,23.01]
[1688233455651,3.13765391,18.393,18.382,23.01]
[1688233455950,58.13765391,18.393,18.382,23.01]
[1688233456451,55.0,18.393,18.382,23.01]
[1688233456651,22.992,18.398,18.382,131.104]
[1688233456834,22.989,18.4,18.389,23.002]
[1688233458033,22.994,18.396,18.387,118.71]
[1688233458261,55.0,18.395,18.387,118.71]
[1688233458545,77.995,18.395,18.387,118.71]
[1688233459351,77.995,18.395,18.387,23.005]
[1688233460947,55.0,18.395,18.387,23.005]
[1688233461134,55.0,18.396,18.387,23.005]
[1688233462048,22.989,18.4,18.39,24.48]
[1688233462240,22.989,18.4,18.392,22.998]
[1688233463454,55.0,18.399,18.392,22.998]
[1688233466056,22.987,18.402,18.392,22.998]